Cogmind - Beta 16.1 @@@ ROGUE MODE // 2026.04.14 @ 01:04:06 Player: skelll Result: Self-destructed Performance ------------- Evolutions (1) 500 Regions Visited (2) 400 Robots Destroyed (9) 45 Value Destroyed (100) 100 Prototype IDs (0) 0 Alien Tech Used (0) 0 Bonus (0) 0 TOTAL SCORE: 1045 Bonus ------- None Cogmind --------- Core Integrity 400/400 Matter 250/300 Energy 93/100 System Corruption 0% Temperature Cool (0) Movement Treading (320) Ox2 Location -9/Materials Parts ------- > --- POWER (1) -------- (None) > --- PROPULSION (3) --- Light Treads Light Treads Compact Wheel > --- UTILITY (3) ------ Huge Storage Unit Terrain Scanner Tractor Beam > --- WEAPON (2) ------- Medium Laser Beam Cannon > --- INVENTORY (25) --- EM Pulse Gun Medium Laser Light Assault Rifle Mining Laser Peak State ------------ > --- POWER ------------ Light Ion Engine > --- PROPULSION ------- Compact Wheel Compact Wheel > --- UTILITY ---------- Huge Storage Unit Seismic Detector > --- WEAPON ----------- EM Pulse Gun EM Pulse Gun > --- INVENTORY -------- Light Ion Engine Light Ion Engine Light Treads Light Treads Flight Unit Tractor Beam Medium Laser Beam Cannon Light Assault Rifle Mining Laser [Rating: 8] Favorites ----------- Power Light Ion Engine Engine Light Ion Engine Propulsion Compact Wheel Treads Light Treads Wheel Compact Wheel Flight Unit Flight Unit Utility Huge Storage Unit Device Terrain Scanner Storage Huge Storage Unit Weapon EM Pulse Gun Energy Gun EM Pulse Gun Energy Cannon Beam Cannon Special Weapon Mining Laser Build | -11 -10 -9 ------- Run | Yrd Mat Mat Slots Evolved 2 | . . 2 Power . | . . . Propulsion 1 | . . 1 Utility 1 | . . 1 Weapon . | . . . Parts Attached 20 | 7 10 3 Power 3 | 1 2 . Engine 3 | 1 2 . Core . | . . . Reactor . | . . . Propulsion 6 | 2 2 2 Treads 2 | . . 2 Leg . | . . . Wheel 2 | 2 . . Hover . | . . . Flight 2 | . 2 . Utility 5 | 1 4 . Device 3 | . 3 . Storage 2 | 1 1 . Processor . | . . . Hackware . | . . . Protection . | . . . Artifact . | . . . Weapon 6 | 3 2 1 Energy Gun 4 | 3 1 . Energy Cannon 1 | . . 1 Ballistic Gun . | . . . Ballistic Cannon . | . . . Launcher . | . . . Special Weapon 1 | . 1 . Impact Weapon . | . . . Slashing Weapon . | . . . Piercing Weapon . | . . . Special Melee Weapon . | . . . Unidentified Prototypes . | . . . Parts Lost 6 | . 6 . Power 3 | . 3 . Propulsion 1 | . 1 . Utility 1 | . 1 . Weapon 1 | . 1 . Highest Loss Streak 3 | . 3 . To Critical Strikes . | . . . Average Backups 8 | 2 9 5 Power 1 | . 1 . Propulsion 2 | 1 2 . Utility 1 | . 1 . Weapon 3 | . 3 4 Tool/Special . | . . . Unused Backups 1 | . . 1 Power . | . . . Propulsion . | . . . Utility . | . . . Weapon 1 | . . 1 Tool/Special . | . . . Average Slot Usage (%) 91 | . 93 66 Engine 12 | . 12 . Wheel 26 | . 26 11 Device 10 | . 10 13 Storage 13 | . 14 11 Energy Gun 23 | . 23 11 Special Weapon 2 | . 2 . Peak Build Rating 8 | 6 8 8 Average Rating 6 | 3 7 7 On Entrance 3 | . 6 4 Avg Prop Armor Cover (%) 2 | . 3 2 Naked Turns . | . . . Heaviest Build 88 | 12 88 87 Greatest Support 40 | 32 32 40 Greatest Overweight (x) 5 | . 5 2 Average Overweight (x) 1 | . 1 2 Largest Inventory Capacity 25 | 8 25 25 Average Capacity 19 | 6 21 25 Most Carried 11 | 4 11 9 Average Carried 8 | 2 9 4 Final Capacity 25 | 8 25 25 Final Carried 10 | 4 10 4 Class Distribution -------------------- 100% | Mutant Dominant Class ---------------- Mutant | -10/Materials Mutant | -9/Materials Resources | -11 -10 -9 ----------- Run | Yrd Mat Mat Matter Collected 397 | 256 141 . Remotely 84 | . 84 . Salvage Created 146 | . 146 . Parts 11 | . 11 . Haulers Intercepted . | . . . Recyclers Shooed . | . . . Parts Field Recycled . | . . . Retrieved Matter . | . . . Parts Self-Destructed . | . . . Prevented . | . . . Parts Restored . | . . . Kills | -11 -10 -9 ------- Run | Yrd Mat Mat Combat Hostiles Destroyed 9 | . 9 . Guns 8 | . 8 . AOE 1 | . 1 . Classes Destroyed 1 | . 1 . Swarmer 9 | . 9 . Best Kill Streak 6 | . 6 . Combat Bots Only 6 | . 6 . Max Kills in Single Turn 1 | . 1 . Gunslinging . | . . . Exploded 1 | . 1 . Melee . | . . . Uniques/NPCs Destroyed . | . . . Combat | -11 -10 -9 -------- Run | Yrd Mat Mat Hostile Shots Fired 44 | . 43 1 Missed 10 | . 10 . Hits 34 | . 33 1 Projectile 34 | . 33 1 Critical Strikes 1 | . 1 . Damage Taken 718 | . 709 9 Core 149 | . 149 . Absorbed by Shields . | . . . Core Remaining (%) 70 | 100 40 . Volleys Fired 36 | . 36 . Largest 2 | . 2 . Hottest 100 | . 100 . Shots Fired 53 | . 53 . Gun 38 | . 38 . Cannon . | . . . Launcher . | . . . Special 15 | . 15 . Kinetic . | . . . Thermal 24 | . 24 . Explosive . | . . . Electromagnetic 29 | . 29 . Robot Hit Streak 4 | . 4 . Robot Miss Streak 5 | . 5 . Penetration Max . | . . . Secondary Targets 1 | . 1 . Max Gunslinging Chain 1 | . 1 . Shots Hit Robots 20 | . 20 . Core Hits 9 | . 9 . Critical Kills . | . . . Critical Parts Destroyed . | . . . Critical Strikes 2 | . 2 . Burn 1 | . 1 . Corrupt 1 | . 1 . Melee Attacks . | . . . Impact . | . . . Slashing . | . . . Piercing . | . . . Sneak Attacks . | . . . Combat Hostiles . | . . . Follow-up Attacks . | . . . Damage Inflicted 247 | . 247 . Guns 224 | . 224 . Cannons . | . . . Explosions 23 | . 23 . Melee . | . . . Ramming . | . . . Kinetic . | . . . Thermal 73 | . 73 . Explosive . | . . . Electromagnetic 174 | . 174 . Impact . | . . . Slashing . | . . . Piercing . | . . . Highest Corruption 10 | . 10 . Average Corruption 8 | . 8 . Corruption Purged . | . . . Corruption Blocked . | . . . Effects 7 | . 7 . Message Errors 3 | . 3 . Matter Fused 1 | . 1 . Energy Discharges 2 | . 2 . Data Loss (major) 1 | . 1 . Overload Shots . | . . . Overflow Damage . | . . . Projectiles . | . . . Explosions . | . . . Melee . | . . . Knockbacks . | . . . Impact . | . . . Kinetic . | . . . Secondary . | . . . Self-Inflicted Damage . | . . . Shots . | . . . Rammed . | . . . Targets Rammed . | . . . Kicked . | . . . Crushed . | . . . Highest Temperature 216 | . 216 . Average Temperature 69 | . 69 . Received Heat Transfer . | . . . Siege Activations . | . . . Martial Activations . | . . . Shielding Activations . | . . . Robots Disrupted . | . . . Combat Hostiles . | . . . Robots Corrupted . | . . . Combat Hostiles . | . . . Parts Fried . | . . . Impact Corruptions . | . . . Robots Melted . | . . . Combat Hostiles . | . . . Parts Melted . | . . . Heat Transferred 222 | . 222 . Parts Sabotaged . | . . . Parts Stolen . | . . . Parts Stripped . | . . . Power Chain Reactions 1 | . 1 . Alert | -11 -10 -9 ------- Run | Yrd Mat Mat Maximum Alert Level . | . . . Low Security (%) 100 | 100 100 100 Level 1 . | . . . Level 2 . | . . . Level 3 . | . . . Level 4 . | . . . Level 5 . | . . . High Security . | . . . Max Security . | . . . Peak Influence 145 | . 145 6 Initial 6 | . . 6 Average 36 | . 41 3 Influence Increases 236 | . 236 . Destroy 0b10 Robot/C 180 | . 180 . Destroy Leader 30 | . 30 . Successful Hack 9 | . 9 . Disable Machine 15 | . 15 . Destroy Structure 2 | . 2 . Influence Decreases 236 | . 220 16 Entered New Map 10 | . . 10 Time Decay 196 | . 190 6 Lost Part 30 | . 30 . Squads Dispatched 3 | . 2 1 Investigation . | . . . Extermination . | . . . Reinforcement 3 | . 2 1 Assault . | . . . Garrison . | . . . Intercept . | . . . Searches Triggered . | . . . Construction Impeded . | . . . Haulers Reinforced . | . . . Active Scanning Responses . | . . . Cargo Convoy Interrupts . | . . . Stealth | -11 -10 -9 --------- Run | Yrd Mat Mat Distress Signals 1 | . . 1 Communications Jammed . | . . . Distress Signals . | . . . Times Spotted 14 | . 10 4 Peak Tracking Total 9 | . 5 9 Tactical Retreats . | . . . Traps | -11 -10 -9 ------- Run | Yrd Mat Mat Traps Triggered . | . . . Indirectly . | . . . Trap Hack Attempts . | . . . Triggered . | . . . Disarmed . | . . . Reprogrammed . | . . . Reused . | . . . Traps Extracted . | . . . Installed . | . . . Triggered . | . . . Machines | -11 -10 -9 ---------- Run | Yrd Mat Mat Machines Disabled 1 | . 1 . Max in Single Turn 1 | . 1 . Machines Repaired . | . . . Machines Dismantled . | . . . Machines Sabotaged . | . . . Overloaded Fab Kills . | . . . Hacking | -11 -10 -9 --------- Run | Yrd Mat Mat Machines Accessed 2 | . 2 . Terminals 2 | . 2 . Fabricators . | . . . Repair Stations . | . . . Recycling Units . | . . . Scanalyzers . | . . . Garrison Access . | . . . Total Hacks 6 | . 6 . Successful 2 | . 2 . Failed 4 | . 4 . Catastrophic . | . . . Database Lockouts . | . . . Manual . | . . . Terminals 6 | . 6 . Fabricators . | . . . Repair Stations . | . . . Recycling Units . | . . . Scanalyzers . | . . . Garrison Access . | . . . Terminal Hacks 2 | . 2 . Locate Traps 1 | . 1 . Hauler Manifests 1 | . 1 . Fabricator Hacks . | . . . Repair Station Hacks . | . . . Recycling Unit Hacks . | . . . Scanalyzer . | . . . Garrison Access Hacks . | . . . Unauthorized Hacks . | . . . Terminals . | . . . Fabricators . | . . . Repair Stations . | . . . Recycling Units . | . . . Scanalyzers . | . . . Garrison Access . | . . . Data Cores Recovered . | . . . Used . | . . . Hacking Detections 2 | . 2 . Full Trace Events 1 | . 1 . Feedback Events . | . . . Feedback Blocked . | . . . Robot Schematics Acquired . | . . . Robots Built . | . . . Authchips . | . . . Time . | . . . Total Robot Build Rating . | . . . Part Schematics Acquired . | . . . Parts Built . | . . . Authchips . | . . . Time . | . . . Total Part Build Rating . | . . . Part Studies Acquired . | . . . Parts Repaired . | . . . Time . | . . . Parts Recycled . | . . . Recycled Matter . | . . . Retrieved Matter . | . . . Retrieved Components . | . . . Parts Scanalyzed . | . . . Part Schematics Acquired . | . . . Parts Damaged . | . . . Bothacking | -11 -10 -9 ------------ Run | Yrd Mat Mat Used RIF Installer . | . . . Robots Hacked . | . . . Non-combat . | . . . Combat . | . . . Robot Hacks Applied . | . . . Relay Couplers Released . | . . . Fabnet Peak Effective % . | . . . Robots Rewired . | . . . Allies Hacked . | . . . Hacks Repelled . | . . . Allies | -11 -10 -9 -------- Run | Yrd Mat Mat Total Allies . | . . . Largest Group . | . . . Highest-Rated Group . | . . . Highest-Rated Ally . | . . . Total Orders . | . . . Ally Attacks . | . . . Total Damage . | . . . Kills . | . . . Allies Corrupted . | . . . Allies Melted . | . . . Intel | -11 -10 -9 ------- Run | Yrd Mat Mat Active Infowar (turns) 402 | . 373 29 Terrain 202 | . 173 29 Seismic 200 | . 200 . Robot Analysis Total . | . . . Derelict Logs Recovered . | . . . Drone Launches . | . . . Drone Recoveries . | . . . Exploration | -11 -10 -9 ------------- Run | Yrd Mat Mat Turns Passed 747 | 65 651 31 Spaces Moved 317 | 53 257 7 Core 4 | 4 . . Treads 7 | . . 7 Legs . | . . . Wheels 302 | 49 253 . Hover . | . . . Flight 4 | . 4 . Fastest Speed 50 | 50 100 320 Average Speed 124 | 96 125 320 Slowest Speed 320 | 100 285 320 Overloaded Moves . | . . . Propulsion Burnouts . | . . . Robots Hopped . | . . . Potential Cave-ins 8 | . 8 . Cave-ins Triggered 2 | . 2 . Exploration Rate (%) 15 | 3 38 4 Regions Visited 2 Branch Regions . Pre-discovered Areas . | . . . Known Exits Taken . | . . . Unknown Exits Taken 2 | 1 1 . Scrap Searched . | . . . Spaces Dug 15 | . 15 . Terrain Destroyed 15 | . 15 . Melee . | . . . Projectile 15 | . 15 . AOE . | . . . Terrain Rammed . | . . . Walls Destroyed . | . . . Machines Disabled . | . . . Actions | -11 -10 -9 --------- Run | Yrd Mat Mat Total 583 | 65 502 16 Wait 186 | . 183 3 Move 315 | 52 256 7 Hop . | . . . Pick Up 10 | 5 5 . Fast Attach 8 | 5 3 . Attach 13 | 2 6 5 Detach 6 | 1 5 . Swap 6 | . 6 . Drop 3 | . 2 1 Fire 36 | . 36 . Melee . | . . . Ram . | . . . Kick . | . . . Crush . | . . . Escape Stasis . | . . . Rewire . | . . . Trap . | . . . Miscellaneous . | . . . Route ------- -11/Scrapyard -10/Materials (discovered 2 exits: [*Mat x2]) -9/Materials History --------- Turn | Location | Event 44 | -11/Scrapyard | Discovered new exit (range 14) 66 | -11/Scrapyard | Entered Materials 266 | -10/Materials | Discovered new exit (range 9) 315 | -10/Materials | Build established: Mutant 548 | -10/Materials | Crushed by falling debris 587 | -10/Materials | Crushed by falling debris 587 | -10/Materials | Core integrity fell below 50% 587 | -10/Materials | System corruption reached 10% 647 | -10/Materials | Discovered new exit (range 13) 703 | -10/Materials | Lost 3 parts (1p1n1w) 717 | -10/Materials | Entered another Materials area 717 | -9/Materials | Evolved 2 slots: Propulsion x1, Utility x1 748 | -9/Materials | Self-destructed Last Messages --------------- 00672_ Destroyed Flight Unit. 00674_ S-10 Pest misfires. 00676_ S-10 Pest suffers critical hit (Burn). 00676_ S-10 Pest destroyed. 00678_ Acquired 2 matter. 00696_ O-16 Technician: "IFF HANDSHAKE FAILED. SECURING TERMINAL." 00697_ 2 6T